fUST/lending_fUST_20260324
["ID","MTS","AMOUNT","RATE_DAILY","PERIOD"]
[408866490,1774356638768,-606.06619818,0.0001517,2]
[408866492,1774356638778,-500.0,0.0001517,2]
[408866494,1774356638787,-500.0,0.0001517,2]
[408866496,1774356638797,-500.0,0.0001517,2]
[408866498,1774356638806,-500.0,0.0001517,2]
[408866500,1774356638815,-500.0,0.0001517,2]
[408866502,1774356638825,-500.0,0.0001517,2]
[408866504,1774356638834,-14937.20727366,0.00015171,2]
[408866507,1774356638846,-1617.24031952,0.00015171,2]
[408866509,1774356638857,-734.368,0.00015171,2]
[408866563,1774356646644,-11771.44789127,0.00015171,2]
[408866621,1774357831505,-441.70512035,0.00013027,2]
[408866627,1774357831564,-673.68369289,0.00013027,2]
[408867149,1774359037935,-5000.0,0.00012265,2]
[408867151,1774359037945,-593.0,0.00012265,2]
[408867152,1774359037954,-300.0,0.00012892,2]
[408867154,1774359037964,-300.0,0.00012892,2]
[408867156,1774359037973,-300.0,0.00012892,2]
[408867158,1774359037983,-300.0,0.00012892,2]
[408867160,1774359037992,-300.0,0.00012892,2]
[408867162,1774359038005,-300.0,0.00012892,2]
[408867164,1774359038015,-300.0,0.00012892,2]
[408867166,1774359038025,-300.0,0.00012892,2]
[408867167,1774359038035,-300.0,0.00012892,2]
[408867170,1774359038045,-300.0,0.00012892,2]
[408867171,1774359038054,-300.0,0.00012892,2]
[408867173,1774359038064,-300.0,0.00012892,2]
[408867175,1774359038073,-300.0,0.00012892,2]
[408867177,1774359038083,-300.0,0.00012892,2]
[408867179,1774359038093,-300.0,0.00012892,2]
[408867181,1774359038102,-1000.0,0.00013699,2]
[408867183,1774359038111,-1000.0,0.00013856,2]
[408867185,1774359038120,-677.247567,0.00013856,2]
[408867187,1774359038129,-677.247567,0.00013856,2]
[408867189,1774359038139,-677.247567,0.00013856,2]
[408867191,1774359038149,-677.247567,0.00013856,2]
[408867193,1774359038159,-151.0,0.00013972,2]
[408867195,1774359038168,-946087.79580442,0.00014469,2]
[408867197,1774359038179,-2957.94987597,0.00014469,2]
[408867200,1774359038189,-25314.72309898,0.00014469,2]
[408867257,1774359040349,-3010.88468929,0.00014469,2]
[408867266,1774359040409,-469.07870949,0.00014469,2]
[408867268,1774359040420,-752.23301139,0.00014469,2]
[408867296,1774359043863,-2325.0,0.00014324,2]
[408867304,1774359045841,-510.36806788,0.00014324,2]
[408867305,1774359045851,-7181.23654922,0.00014469,2]
[408867306,1774359045862,-74647.37957488,0.00014469,2]
[408867450,1774360231977,-2423.10000001,0.00012591,2]
[408867451,1774360231988,-1324.24725913,0.00012591,2]
[408867453,1774360232000,-351.995,0.00012591,2]
[408867455,1774360232016,-216.54274086,0.00012591,2]
[408867457,1774360232026,-300.0,0.00012718,2]
[408867459,1774360232036,-600.0,0.00012718,2]
[408867460,1774360232045,-3374.7352165,0.00013656,2]
[408867461,1774360232055,-917.28475629,0.00013673,2]
[408867462,1774360232064,-278.0,0.00013698,2]
[408867463,1774360232074,-156.0,0.00013699,2]
[408867464,1774360232084,-1000.0,0.00013699,2]
[408867466,1774360232093,-637.23294202,0.00013699,2]
[408867467,1774360232106,-362.76705798,0.00013699,2]
[408867468,1774360232116,-489.01124675,0.00013746,2]
[408867469,1774360232127,-4536.92012955,0.00013746,2]
[408867470,1774360232137,-500.0,0.00013755,2]
[408867471,1774360232147,-500.0,0.00013755,2]
[408867472,1774360232157,-500.0,0.00013755,2]
[408867474,1774360232167,-500.0,0.00013755,2]
[408867475,1774360232176,-320.23417313,0.00013755,2]
[408867476,1774360232185,-500.0,0.00013755,2]
[408867477,1774360232195,-500.0,0.00013755,2]
[408867478,1774360232205,-500.0,0.00013755,2]
[408867479,1774360232215,-500.0,0.00013755,2]
[408867480,1774360232224,-500.0,0.00013755,2]
[408867481,1774360232234,-500.0,0.00013755,2]
[408867482,1774360232244,-500.0,0.00013755,2]
[408867483,1774360232261,-500.0,0.00013755,2]
[408867484,1774360232271,-500.0,0.00013755,2]
[408867485,1774360232280,-500.0,0.00013755,2]
[408867486,1774360232290,-500.0,0.00013755,2]
[408867487,1774360232299,-500.0,0.00013755,2]
[408867488,1774360232310,-500.0,0.00013755,2]
[408867489,1774360232319,-500.0,0.00013755,2]
[408867490,1774360232329,-500.0,0.00013755,2]
[408867491,1774360232339,-500.0,0.00013755,2]
[408867492,1774360232349,-500.0,0.00013755,2]
[408867493,1774360232359,-500.0,0.00013755,2]
[408867494,1774360232596,-500.0,0.00013755,2]
[408867495,1774360232607,-500.0,0.00013755,2]
[408867496,1774360232616,-500.0,0.00013755,2]
[408867497,1774360232625,-500.0,0.00013755,2]
[408867498,1774360232635,-500.0,0.00013755,2]
[408867499,1774360232644,-500.0,0.00013755,2]
[408867500,1774360232653,-500.0,0.00013755,2]
[408867501,1774360232662,-500.0,0.00013755,2]
[408867502,1774360232671,-500.0,0.00013755,2]
[408867503,1774360232680,-500.0,0.00013755,2]
[408867504,1774360232689,-500.0,0.00013755,2]
[408867505,1774360232702,-500.0,0.00013755,2]
[408867506,1774360232712,-500.0,0.00013755,2]
[408867507,1774360232721,-500.0,0.00013755,2]
[408867508,1774360232730,-500.0,0.00013755,2]
[408867509,1774360232739,-500.0,0.00013755,2]
[408867510,1774360232748,-500.0,0.00013755,2]
[408867511,1774360232760,-500.0,0.00013755,2]
[408867512,1774360232769,-500.0,0.00013755,2]
[408867513,1774360232778,-500.0,0.00013755,2]
[408867514,1774360232787,-500.0,0.00013755,2]
[408867515,1774360232797,-500.0,0.00013755,2]
[408867516,1774360232806,-500.0,0.00013755,2]
[408867517,1774360232816,-500.0,0.00013755,2]
[408867518,1774360232825,-500.0,0.00013755,2]
[408867519,1774360232834,-500.0,0.00013755,2]
[408867520,1774360232843,-500.0,0.00013755,2]
[408867521,1774360232853,-500.0,0.00013755,2]
[408867522,1774360232862,-500.0,0.00013755,2]
[408867523,1774360232871,-500.0,0.00013755,2]
[408867524,1774360232881,-500.0,0.00013755,2]
[408867525,1774360232890,-500.0,0.00013755,2]
[408867526,1774360232899,-500.0,0.00013755,2]
[408867527,1774360232908,-500.0,0.00013755,2]
[408867528,1774360232917,-500.0,0.00013755,2]
[408867529,1774360232927,-500.0,0.00013755,2]
[408867530,1774360232936,-500.0,0.00013755,2]
[408867531,1774360232945,-500.0,0.00013755,2]
[408867532,1774360232956,-500.0,0.00013755,2]
[408867533,1774360232965,-500.0,0.00013755,2]
[408867534,1774360232976,-500.0,0.00013755,2]
[408867535,1774360232985,-500.0,0.00013755,2]
[408867536,1774360232995,-500.0,0.00013755,2]
[408867537,1774360233004,-492.2989106,0.00013755,2]
[408867538,1774360233015,-500.0,0.00013755,2]
[408867539,1774360233025,-500.0,0.00013755,2]
[408867540,1774360233033,-500.0,0.00013755,2]
[408867541,1774360233046,-500.0,0.00013755,2]
[408867542,1774360233055,-500.0,0.00013755,2]
[408867543,1774360233064,-500.0,0.00013755,2]
[408867544,1774360233074,-388.24344054,0.00013755,2]
[408867612,1774360240443,-111.75655946,0.00013755,2]
[408867614,1774360240453,-500.0,0.00013755,2]
[408867616,1774360240462,-500.0,0.00013755,2]
[408867618,1774360240471,-500.0,0.00013755,2]
[408867620,1774360240481,-500.0,0.00013755,2]
[408867622,1774360240491,-500.0,0.00013755,2]
[408867625,1774360240510,-500.0,0.00013755,2]
[408867627,1774360240520,-500.0,0.00013755,2]
[408867629,1774360240529,-511.29525011,0.00013755,2]
[408867631,1774360240539,-161.94819043,0.00013755,2]
[408867734,1774360244403,-338.05180957,0.00013755,2]
[408867735,1774360244414,-500.0,0.00013755,2]
[408867736,1774360244423,-500.0,0.00013755,2]
[408867737,1774360244433,-500.0,0.00013755,2]
[408867738,1774360244442,-500.0,0.00013755,2]
[408867739,1774360244452,-500.0,0.00013755,2]
[408867740,1774360244462,-3.76957311,0.00013755,2]
[408867757,1774360246678,-351.92062858,0.00013756,2]
[408867758,1774360246689,-21817.49999999,0.00013756,2]
[408867759,1774360246701,-7215.27344485,0.00013756,2]
[408867821,1774361432049,-4885.0,0.0001125,2]
[408867824,1774361432060,-115.0,0.0001125,2]
[408867826,1774361432069,-1410.22,0.00011364,2]
[408867828,1774361432080,-580.0,0.00011364,2]
[408867830,1774361432089,-1774.1505146,0.00011479,2]
[408867832,1774361432098,-300.0,0.00011708,2]
[408867834,1774361432107,-300.0,0.00011708,2]
[408867836,1774361432117,-300.0,0.00011708,2]
[408867838,1774361432127,-300.0,0.00011708,2]
[408867840,1774361432136,-300.0,0.00011708,2]
[408867842,1774361432146,-300.0,0.00011708,2]
[408867843,1774361432155,-300.0,0.00011708,2]
[408867845,1774361432165,-1058.31201678,0.00012967,2]
[408867847,1774361432173,-35692.86165261,0.00013067,2]
[408867849,1774361432184,-2369.1363388,0.00013067,2]
[408868250,1774361443458,-300.0,0.00011708,2]
[408868253,1774361443468,-300.0,0.00011708,2]
[408868255,1774361443477,-300.0,0.00011708,2]
[408868257,1774361443487,-300.0,0.00011708,2]
[408868259,1774361443497,-300.0,0.00011708,2]
[408868261,1774361443506,-300.0,0.00011708,2]
[408868263,1774361443515,-300.0,0.00011708,2]
[408868265,1774361443524,-300.0,0.00011708,2]
[408868267,1774361443533,-11938.00200859,0.00013067,2]
[408868269,1774361443542,-213.06276335,0.00013067,2]
[408868271,1774361443551,-383.51297403,0.00013067,2]
[408868273,1774361443560,-681.80084271,0.00013067,2]
[408868275,1774361443570,-1064.24850292,0.00013067,2]
[408868277,1774361443580,-304.85692885,0.00013067,2]
[408868279,1774361443590,-348.40791869,0.00013067,2]
[408868281,1774361443599,-543.84298558,0.00013067,2]
[408868283,1774361443609,-530.446647,0.00013277,2]
[408868285,1774361443619,-852.91003982,0.000134,2]
[408868287,1774361443628,-2121.68320279,0.000134,2]
[408868289,1774361443637,-1894.574996,0.000134,2]
[408868291,1774361443647,-2248.25374004,0.000134,2]
[408868293,1774361443656,-491.08201438,0.000134,2]
[408868295,1774361443665,-1137.39751049,0.000134,2]
[408868297,1774361443674,-1176.21870429,0.000134,2]
[408868299,1774361443683,-1026.0596178,0.000134,2]
[408868301,1774361443692,-171.45819088,0.000134,2]
[408868303,1774361443701,-206.98172057,0.000134,2]
[408868305,1774361443710,-214.64772119,0.000134,2]
[408868307,1774361443719,-218.70555777,0.000134,2]
[408868309,1774361443728,-500.0,0.00013497,2]
[408868311,1774361443738,-339.34647892,0.00013497,2]
[408868313,1774361443747,-164.976,0.000135,2]
[408868315,1774361443756,-185.866,0.000135,2]
[408868317,1774361443765,-38641.65693334,0.00013553,2]
[408868319,1774361443776,-44231.90898408,0.00013553,2]
[408868349,1774361446412,-1750.02877427,0.00013553,2]
[408868350,1774361446473,-8877.30683992,0.00013553,2]
[408868421,1774362632336,-340.39495,0.00010642,2]
[408868423,1774362632349,-1076.45481776,0.00010642,2]
[408868525,1774362638380,-2184.15023224,0.00010642,2]
[408868527,1774362638392,-5000.0,0.0001075,2]
[408868529,1774362638404,-571.0,0.0001075,2]
[408868531,1774362638416,-1195.0,0.00010858,2]
[408868533,1774362638427,-300.0,0.00011533,2]
[408868536,1774362638438,-268.0,0.00011533,2]
[408868538,1774362638449,-300.0,0.00011883,2]
[408868540,1774362638461,-300.0,0.00011883,2]
[408868542,1774362638469,-300.0,0.00011883,2]
[408868544,1774362638479,-300.0,0.00011883,2]
[408868546,1774362638488,-300.0,0.00011883,2]
[408868548,1774362638498,-300.0,0.00011883,2]
[408868549,1774362638507,-300.0,0.00011883,2]
[408868550,1774362638517,-300.0,0.00011883,2]
[408868551,1774362638526,-300.0,0.00011883,2]
[408868553,1774362638535,-300.0,0.00011883,2]
[408868554,1774362638544,-300.0,0.00011883,2]
[408868556,1774362638553,-300.0,0.00011883,2]
[408868558,1774362638563,-300.0,0.00011883,2]
[408868560,1774362638572,-300.0,0.00011883,2]
[408868561,1774362638582,-300.0,0.00011883,2]
[408868562,1774362638591,-50000.0,0.00011883,2]
[408868563,1774362638600,-600.0,0.0001212,2]
[408868564,1774362638609,-206.02334743,0.00013067,2]
[408868565,1774362638619,-370.84202537,0.00013067,2]
[408868566,1774362638629,-318.85820172,0.00013067,2]
[408868567,1774362638638,-573.9447631,0.00013067,2]
[408868568,1774362638647,-1020.34624551,0.00013099,2]
[408868569,1774362638816,-502.12966442,0.0001316,2]
[408868570,1774362638897,-500.0,0.0001316,2]
[408868571,1774362638910,-500.0,0.0001316,2]
[408868572,1774362638920,-659.27471177,0.00013261,2]
[408868573,1774362638930,-38.43981494,0.00013286,2]
[408868574,1774362638941,-126.53718506,0.00013286,2]
[408868575,1774362638951,-182.12785695,0.00013287,2]
[408868576,1774362638970,-317.87214305,0.00013287,2]
[408868577,1774362638981,-500.0,0.00013287,2]
[408868578,1774362638990,-471.83427631,0.00013287,2]
[408868579,1774362639001,-28.16572369,0.00013287,2]
[408868580,1774362639011,-205.08249188,0.00013287,2]
[408868581,1774362639021,-500.0,0.00013287,2]
[408868582,1774362639031,-500.0,0.00013287,2]
[408868583,1774362639042,-500.0,0.00013287,2]
[408868584,1774362639052,-719.55770099,0.00013287,2]
[408868585,1774362639063,-719.55770099,0.00013287,2]
[408868586,1774362639082,-719.55770099,0.00013287,2]
[408868587,1774362639095,-342.78226721,0.00013287,2]
[408868631,1774362641006,-300.0,0.00010964,2]
[408868633,1774362641016,-376.77543378,0.00013287,2]
[408868635,1774362641026,-67.46660906,0.00013287,2]
[408868888,1774362646668,-300.0,0.00010964,2]
[408868889,1774362646677,-300.0,0.00010964,2]
[408868890,1774362646687,-300.0,0.00010964,2]
[408868891,1774362646696,-300.0,0.00010964,2]
[408868892,1774362646706,-300.0,0.00010964,2]
[408868893,1774362646715,-300.0,0.00010964,2]
[408868894,1774362646724,-298.5,0.00010964,2]
[408868895,1774362646736,-1.5,0.00010964,2]
[408868896,1774362646745,-300.0,0.00010964,2]
[408868897,1774362646755,-300.0,0.00010964,2]
[408868898,1774362646764,-300.0,0.00010964,2]
[408868899,1774362646773,-652.09109193,0.00013287,2]
[408868900,1774362646783,-719.55770099,0.00013287,2]
[408868901,1774362646792,-719.55770099,0.00013287,2]
[408868902,1774362646801,-719.55770099,0.00013287,2]
[408868903,1774362646810,-719.55770099,0.00013287,2]
[408868904,1774362646819,-719.55770099,0.00013287,2]
[408868905,1774362646828,-719.55770099,0.00013287,2]
[408868906,1774362646838,-719.55770099,0.00013287,2]
[408868907,1774362646847,-719.55770099,0.00013287,2]
[408868908,1774362646856,-719.55770099,0.00013287,2]
[408868909,1774362646865,-719.55770099,0.00013287,2]
[408868910,1774362646874,-719.55770099,0.00013287,2]
[408868911,1774362646884,-719.55770099,0.00013287,2]
[408868912,1774362646893,-719.55770099,0.00013287,2]
[408868913,1774362646903,-719.55770099,0.00013287,2]
[408868914,1774362646912,-719.55770099,0.00013287,2]
[408868915,1774362646921,-719.55770099,0.00013287,2]
[408868916,1774362646931,-719.55770099,0.00013287,2]
[408868917,1774362646940,-719.55770099,0.00013287,2]
[408868918,1774362646949,-719.55770099,0.00013287,2]
[408868919,1774362646959,-719.55770099,0.00013287,2]
[408868920,1774362646969,-719.55770099,0.00013287,2]
[408868921,1774362646979,-719.55770099,0.00013287,2]
[408868922,1774362646988,-719.55770099,0.00013287,2]
[408868923,1774362646997,-719.55770099,0.00013287,2]
[408868924,1774362647007,-719.55770099,0.00013287,2]
[408868925,1774362647017,-719.55770099,0.00013287,2]
[408868926,1774362647026,-719.55770099,0.00013287,2]
[408868927,1774362647036,-719.55770099,0.00013287,2]
[408868928,1774362647045,-562.90479821,0.00013287,2]
[408868931,1774362700745,-841.59,0.00010745,2]
[408869010,1774363832430,-1703.01513649,9.527e-05,2]
[408869011,1774363832440,-553.0,9.527e-05,2]
[408869013,1774363832449,-1228.33486351,9.623e-05,2]
[408869032,1774363839426,-278.716,9.623e-05,2]
[408869033,1774363839437,-572.260004,9.623e-05,2]
[408869055,1774363841093,-2920.68913249,9.623e-05,2]
[408869056,1774363841103,-697.03704007,9.798e-05,2]
[408869057,1774363841113,-1364.96485145,9.898e-05,2]
[408869058,1774363841123,-1482.04119513,9.998e-05,2]
[408869059,1774363841133,-1590.8347696,0.00010821,2]
[408869060,1774363841142,-300.0,0.00011182,2]
[408869061,1774363841151,-300.0,0.00011182,2]
[408869062,1774363841161,-300.0,0.00011182,2]
[408869063,1774363841171,-300.0,0.00011182,2]
[408869064,1774363841180,-300.0,0.00011182,2]
[408869065,1774363841189,-300.0,0.00011182,2]
[408869066,1774363841199,-300.0,0.00011182,2]
[408869067,1774363841209,-300.0,0.00011182,2]
[408869068,1774363841218,-300.0,0.00011182,2]
[408869069,1774363841228,-300.0,0.00011182,2]
[408869071,1774363841237,-300.0,0.00011182,2]
[408869072,1774363841246,-300.0,0.00011182,2]
[408869073,1774363841255,-300.0,0.00011182,2]
[408869074,1774363841265,-300.0,0.00011182,2]
[408869075,1774363841275,-300.0,0.00011182,2]
[408869076,1774363841285,-1592.69671761,0.00012015,2]
[408869077,1774363841294,-1029.0866204,0.00012178,2]
[408869078,1774363841304,-319.12115036,0.00012666,5]
[408869079,1774363841315,-1699.6283442,0.00012761,2]
[408869080,1774363841325,-500.0,0.00012946,2]
[408869081,1774363841334,-500.0,0.00012946,2]
[408869082,1774363841344,-356.12027688,0.00012946,2]
[408869083,1774363841353,-500.0,0.00012946,2]
[408869084,1774363841362,-500.0,0.00012946,2]
[408869085,1774363841373,-500.0,0.00012946,2]
[408869086,1774363841382,-500.0,0.00012946,2]
[408869087,1774363841393,-500.0,0.00012946,2]
[408869088,1774363841403,-500.0,0.00012946,2]
[408869089,1774363841412,-500.0,0.00012946,2]
[408869090,1774363841421,-500.0,0.00012946,2]
[408869091,1774363841430,-500.0,0.00012946,2]
[408869092,1774363841439,-500.0,0.00012946,2]
[408869093,1774363841449,-417.91829091,0.00012946,2]
[408869094,1774363841458,-500.0,0.00012946,2]
[408869095,1774363841467,-500.0,0.00012946,2]
[408869096,1774363841481,-372.55118211,0.00012946,2]
[408869097,1774363841491,-500.0,0.00012946,2]
[408869098,1774363841501,-500.0,0.00012946,2]
[408869099,1774363841510,-500.0,0.00012946,2]
[408869100,1774363841519,-500.0,0.00012946,2]
[408869101,1774363841529,-44.27942999,0.00012946,2]
[408869162,1774363846469,-455.72057001,0.00012946,2]
[408869164,1774363846482,-44.41041729,0.00012946,2]
[408869166,1774363846495,-455.58958271,0.00012946,2]
[408869168,1774363846504,-500.0,0.00012946,2]
[408869170,1774363846513,-500.0,0.00012946,2]
[408869172,1774363846522,-500.0,0.00012946,2]
[408869174,1774363846532,-500.0,0.00012946,2]
[408869176,1774363846541,-500.0,0.00012946,2]
[408869178,1774363846551,-500.0,0.00012946,2]
[408869180,1774363846560,-500.0,0.00012946,2]
[408869182,1774363846570,-500.0,0.00012946,2]
[408869184,1774363846579,-500.0,0.00012946,2]
[408869186,1774363846588,-500.0,0.00012946,2]
[408869188,1774363846598,-500.0,0.00012946,2]
[408869190,1774363846608,-500.0,0.00012946,2]
[408869192,1774363846617,-500.0,0.00012946,2]
[408869193,1774363846628,-500.0,0.00012946,2]
[408869194,1774363846638,-500.0,0.00012946,2]
[408869196,1774363846648,-500.0,0.00012946,2]
[408869198,1774363846657,-500.0,0.00012946,2]
[408869201,1774363846667,-500.0,0.00012946,2]
[408869204,1774363846676,-500.0,0.00012946,2]
[408869207,1774363846685,-500.0,0.00012946,2]
[408869209,1774363846694,-500.0,0.00012946,2]
[408869211,1774363846703,-500.0,0.00012946,2]
[408869213,1774363846712,-500.0,0.00012946,2]
[408869215,1774363846721,-500.0,0.00012946,2]
[408869217,1774363846730,-500.0,0.00012946,2]
[408869219,1774363846740,-500.0,0.00012946,2]
[408869220,1774363846749,-500.0,0.00012946,2]
[408869222,1774363846758,-500.0,0.00012946,2]
[408869224,1774363846767,-500.0,0.00012946,2]
[408869225,1774363846777,-500.0,0.00012946,2]
[408869227,1774363846786,-500.0,0.00012946,2]
[408869229,1774363846795,-500.0,0.00012946,2]
[408869231,1774363846804,-500.0,0.00012946,2]
[408869232,1774363846814,-500.0,0.00012946,2]
[408869233,1774363846822,-500.0,0.00012946,2]
[408869234,1774363846831,-500.0,0.00012946,2]
[408869235,1774363846840,-500.0,0.00012946,2]
[408869236,1774363846849,-500.0,0.00012946,2]
[408869238,1774363846859,-500.0,0.00012946,2]
[408869240,1774363846868,-500.0,0.00012946,2]
[408869242,1774363846879,-500.0,0.00012946,2]
[408869244,1774363846888,-500.0,0.00012946,2]
[408869246,1774363846898,-500.0,0.00012946,2]
[408869248,1774363846907,-500.0,0.00012946,2]
[408869250,1774363846917,-500.0,0.00012946,2]
[408869252,1774363846926,-500.0,0.00012946,2]
[408869253,1774363846936,-500.0,0.00012946,2]
[408869254,1774363846945,-500.0,0.00012946,2]
[408869255,1774363846955,-500.0,0.00012946,2]
[408869256,1774363846964,-500.0,0.00012946,2]
[408869257,1774363846974,-500.0,0.00012946,2]
[408869258,1774363846983,-500.0,0.00012946,2]
[408869259,1774363846992,-500.0,0.00012946,2]
[408869260,1774363847001,-500.0,0.00012946,2]
[408869261,1774363847010,-500.0,0.00012946,2]
[408869262,1774363847019,-151.0,0.00012947,2]
[408869263,1774363847028,-151.0,0.00012947,2]
[408869264,1774363847038,-151.0,0.00012947,2]
[408869265,1774363847048,-151.0,0.00012947,2]
[408869266,1774363847057,-500.0,0.00012947,2]
[408869267,1774363847067,-500.0,0.00012947,2]
[408869268,1774363847076,-201.66575424,0.00012947,2]
[408869269,1774363847086,-500.0,0.00012947,2]
[408869270,1774363847095,-500.0,0.00012947,2]
[408869271,1774363847104,-500.0,0.00012947,2]
[408869272,1774363847113,-500.0,0.00012947,2]
[408869273,1774363847123,-500.0,0.00012947,2]
[408869274,1774363847135,-500.0,0.00012947,2]
[408869275,1774363847145,-500.0,0.00012947,2]
[408869276,1774363847155,-378.25866996,0.00012947,2]
[408869277,1774363847164,-500.0,0.00012947,2]
[408869278,1774363847173,-500.0,0.00012947,2]
[408869279,1774363847183,-500.0,0.00012947,2]
[408869280,1774363847192,-500.0,0.00012947,2]
[408869281,1774363847201,-12815.9461822,0.00012948,2]
[408869282,1774363847211,-360.7276285,0.00012948,2]
[408869283,1774363847220,-18993.62243377,0.00012948,2]
[408869284,1774363847236,-2088.0,0.00012948,2]
[408869285,1774363847251,-7983.92231653,0.00012948,2]
[408869286,1774363847260,-151.0,0.00012948,2]
[408869287,1774363847270,-151.0,0.00012948,2]
[408869288,1774363847279,-151.0,0.00012948,2]
[408869289,1774363847288,-151.0,0.00012948,2]
[408869290,1774363847297,-151.0,0.00012948,2]
[408869291,1774363847307,-5834.63632526,0.00012948,2]
[408869292,1774363847318,-1872.93,0.00012948,2]
[408869293,1774363847329,-3949.51571334,0.00012948,2]
[408869294,1774363847338,-500.0,0.00012973,2]
[408869295,1774363847348,-512.74547002,0.00012973,2]
[408869296,1774363847357,-500.0,0.00012973,2]
[408869297,1774363847366,-500.0,0.00012973,2]
[408869298,1774363847377,-500.0,0.00012973,2]
[408869299,1774363847386,-151.0,0.00013272,2]
[408869300,1774363847395,-151.0,0.00013272,2]
[408869301,1774363847404,-151.0,0.00013272,2]
[408869302,1774363847413,-151.0,0.00013272,2]
[408869303,1774363847423,-151.0,0.00013272,2]
[408869304,1774363847432,-151.0,0.00013272,2]
[408869305,1774363847441,-151.0,0.00013272,2]
[408869306,1774363847451,-151.0,0.00013272,2]
[408869307,1774363847460,-151.0,0.00013272,2]
[408869308,1774363847469,-151.0,0.00013272,2]
[408869309,1774363847483,-151.0,0.00013272,2]
[408869310,1774363847492,-151.0,0.00013272,2]
[408869311,1774363847502,-151.0,0.00013272,2]
[408869312,1774363847512,-151.0,0.00013272,2]
[408869313,1774363847521,-151.0,0.00013272,2]
[408869314,1774363847530,-151.0,0.00013272,2]
[408869315,1774363847539,-151.0,0.00013272,2]
[408869316,1774363847550,-257.819537,0.00013272,2]
[408869317,1774363847559,-502.26165176,0.00013273,2]
[408869318,1774363847569,-502.936752,0.00013273,2]
[408869319,1774363847578,-501.97081016,0.00013273,2]
[408869320,1774363847587,-500.0,0.00013273,2]
[408869321,1774363847597,-321.50148016,0.00013273,2]
[408869322,1774363847607,-500.18906294,0.00013273,2]
[408869323,1774363847618,-500.0,0.00013273,2]
[408869324,1774363847630,-500.0,0.00013273,2]
[408869325,1774363847640,-500.0,0.00013273,2]
[408869326,1774363847650,-500.0,0.00013273,2]
[408869327,1774363847659,-600.0,0.0001328,2]
[408869328,1774363847669,-600.0,0.0001328,3]
[408869329,1774363847678,-500.0,0.00013287,2]
[408869330,1774363847688,-5628.2156505,0.00013288,2]
[408869331,1774363847697,-929.98387166,0.00013333,5]
[408869332,1774363847707,-561.558676,0.00013413,2]
[408869333,1774363847716,-537.6845,0.00013439,2]
[408869334,1774363847725,-537.6845,0.00013439,2]
[408869335,1774363847735,-162.380719,0.00013439,2]
[408869336,1774363847744,-168.3888056,0.00013439,2]
[408869337,1774363847754,-174.61919141,0.00013439,2]
[408869338,1774363847764,-181.08010149,0.00013439,2]
[408869339,1774363847773,-187.78006525,0.00013439,2]
[408869340,1774363847782,-179.00390257,0.00013439,2]
[408869341,1774363847792,-151.0,0.00013439,2]
[408869342,1774363847801,-2150.738,0.00013439,2]
[408869343,1774363847810,-557.5788265,0.00013494,2]
[408869344,1774363847820,-502.59243544,0.000135,2]
[408869345,1774363847829,-282.81876766,0.000135,2]
[408869346,1774363847839,-500.0,0.000135,2]
[408869347,1774363847850,-1000.0,0.00013521,2]
[408869348,1774363847859,-1000.0,0.00013521,2]
[408869349,1774363847868,-1000.0,0.00013521,2]
[408869350,1774363847881,-501.47490749,0.00013521,2]